[Event "Late-Titled-Tuesday-Blitz-February-06-2024"]
[Site "Chess.com"]
[Date "2024.02.06"]
[Round "2"]
[White "GreatOwl02"]
[Black "ahkashefi2800"]
[Result "0-1"]
[WhiteElo "2297"]
[BlackElo "2528"]
[TimeControl "180+1"]
[EndTime "14:17:10 PST"]
[Termination "ahkashefi2800 won by resignation"]

1. Nf3 {[%clk 0:02:59.7]} 1... d5 {[%clk 0:02:59.6]} 2. e3 {[%clk 0:02:58.5]}
2... c6 {[%clk 0:03:00.1]} 3. c4 {[%clk 0:02:56.5]} 3... Nf6 {[%clk 0:03:00.4]}
4. b3 {[%clk 0:02:56.1]} 4... Bg4 {[%clk 0:03:00.3]} 5. Bb2 {[%clk 0:02:56.3]}
5... e6 {[%clk 0:03:00]} 6. h3 {[%clk 0:02:45.8]} 6... Bh5 {[%clk 0:02:53.5]} 7.
g4 {[%clk 0:02:11.7]} 7... Bg6 {[%clk 0:02:53.5]} 8. Ne5 {[%clk 0:02:11.9]} 8...
Nbd7 {[%clk 0:02:53.7]} 9. Nxg6 {[%clk 0:02:10.1]} 9... hxg6 {[%clk 0:02:53.6]}
10. Bg2 {[%clk 0:02:10.4]} 10... Bd6 {[%clk 0:02:53.2]} 11. Nc3 {[%clk
0:02:08.9]} 11... Qe7 {[%clk 0:02:53.3]} 12. Qc2 {[%clk 0:01:50.6]} 12... Ba3
{[%clk 0:02:50.2]} 13. g5 {[%clk 0:01:18.6]} 13... Ng8 {[%clk 0:02:37.6]} 14. h4
{[%clk 0:01:18.3]} 14... dxc4 {[%clk 0:02:34.5]} 15. bxc4 {[%clk 0:01:17.2]}
15... Ne5 {[%clk 0:02:30.9]} 16. Bxa3 {[%clk 0:01:02.7]} 16... Qxa3 {[%clk
0:02:30.9]} 17. Qe4 {[%clk 0:01:02.7]} 17... Nd7 {[%clk 0:02:26.1]} 18. Rb1
{[%clk 0:00:56.6]} 18... Nc5 {[%clk 0:02:19.4]} 19. Qc2 {[%clk 0:00:55.9]} 19...
O-O-O {[%clk 0:02:18.5]} 20. d4 {[%clk 0:00:50.3]} 20... Na6 {[%clk 0:02:15.4]}
21. Rb3 {[%clk 0:00:28.9]} 21... Qa5 {[%clk 0:02:15.3]} 22. Ke2 {[%clk
0:00:23.8]} 22... Ne7 {[%clk 0:02:15.1]} 23. Qb2 {[%clk 0:00:17.6]} 23... Rd7
{[%clk 0:02:12.6]} 24. Rb1 {[%clk 0:00:16.1]} 24... b6 {[%clk 0:02:08.6]} 25.
Ra3 {[%clk 0:00:14.9]} 25... Qf5 {[%clk 0:02:04.7]} 26. Rxa6 {[%clk 0:00:14.6]}
26... Rxh4 {[%clk 0:02:03.3]} 27. Ra3 {[%clk 0:00:12.8]} 27... Rh2 {[%clk
0:02:00.9]} 28. Bf3 {[%clk 0:00:12.7]} 28... Qxg5 {[%clk 0:01:58.3]} 29. c5
{[%clk 0:00:13.3]} 29... Nf5 {[%clk 0:01:57.4]} 30. cxb6 {[%clk 0:00:11.6]}
30... Qxe3+ {[%clk 0:01:54.1]} 31. Kf1 {[%clk 0:00:07.1]} 31... Qxf3 {[%clk
0:01:16.7]} 32. Ke1 {[%clk 0:00:04.5]} 32... Rh1+ {[%clk 0:01:09.3]} 0-1

[Event "Late-Titled-Tuesday-Blitz-February-06-2024"]
[Site "Chess.com"]
[Date "2024.02.06"]
[Round "2"]
[White "emeli_chess"]
[Black "Hamisandwich"]
[Result "0-1"]
[WhiteElo "2396"]
[BlackElo "2740"]
[TimeControl "180+1"]
[EndTime "14:17:15 PST"]
[Termination "Hamisandwich won by resignation"]

1. d4 {[%clk 0:03:00.9]} 1... Nf6 {[%clk 0:02:58.8]} 2. c4 {[%clk 0:03:00.2]}
2... b6 {[%clk 0:02:59.1]} 3. Nc3 {[%clk 0:02:59.9]} 3... Bb7 {[%clk 0:02:59.2]}
4. d5 {[%clk 0:02:59.3]} 4... e6 {[%clk 0:02:58.2]} 5. e4 {[%clk 0:02:58.9]}
5... Bb4 {[%clk 0:02:54.3]} 6. Bd3 {[%clk 0:02:56.5]} 6... Bxc3+ {[%clk
0:02:52.1]} 7. bxc3 {[%clk 0:02:56.4]} 7... d6 {[%clk 0:02:51.9]} 8. f4 {[%clk
0:02:50.2]} 8... Nbd7 {[%clk 0:02:49.1]} 9. Nf3 {[%clk 0:02:49.6]} 9... exd5
{[%clk 0:02:33.1]} 10. cxd5 {[%clk 0:02:41.8]} 10... O-O {[%clk 0:02:32.4]} 11.
O-O {[%clk 0:02:40.8]} 11... Nc5 {[%clk 0:02:31]} 12. Qc2 {[%clk 0:02:17.3]}
12... Re8 {[%clk 0:02:30.3]} 13. e5 {[%clk 0:02:16.5]} 13... dxe5 {[%clk
0:01:57.5]} 14. fxe5 {[%clk 0:02:11.7]} 14... Nxd3 {[%clk 0:01:56.2]} 15. Qxd3
{[%clk 0:01:47.9]} 15... Qxd5 {[%clk 0:01:54]} 16. Qf5 {[%clk 0:01:39.8]} 16...
Qe4 {[%clk 0:01:34.9]} 17. Qh3 {[%clk 0:01:25.3]} 17... Nd5 {[%clk 0:00:59.7]}
18. Ng5 {[%clk 0:01:16.9]} 18... Qg6 {[%clk 0:00:59.2]} 19. Nxf7 {[%clk
0:01:16.6]} 19... Re7 {[%clk 0:00:46.3]} 20. e6 {[%clk 0:01:09.2]} 20... Qxe6
{[%clk 0:00:40.8]} 21. Qxe6 {[%clk 0:00:58.6]} 21... Rxe6 {[%clk 0:00:41.7]} 22.
c4 {[%clk 0:00:55.5]} 22... Nc3 {[%clk 0:00:33.4]} 23. Bb2 {[%clk 0:00:42.7]}
23... Re2 {[%clk 0:00:33]} 24. Rf2 {[%clk 0:00:42.1]} 24... Rxf2 {[%clk
0:00:28]} 25. Kxf2 {[%clk 0:00:40.5]} 25... Na4 {[%clk 0:00:28.5]} 26. Ne5
{[%clk 0:00:31.7]} 26... Nxb2 {[%clk 0:00:28.2]} 27. Rb1 {[%clk 0:00:32]} 27...
Na4 {[%clk 0:00:28.1]} 0-1

[Event "Late-Titled-Tuesday-Blitz-February-06-2024"]
[Site "Chess.com"]
[Date "2024.02.06"]
[Round "2"]
[White "brm72"]
[Black "egnfanclub"]
[Result "1-0"]
[WhiteElo "2653"]
[BlackElo "2368"]
[TimeControl "180+1"]
[EndTime "14:17:15 PST"]
[Termination "brm72 won by checkmate"]

1. d4 {[%clk 0:03:00.9]} 1... d5 {[%clk 0:02:59.2]} 2. Nf3 {[%clk 0:03:01.4]}
2... Nf6 {[%clk 0:02:58.9]} 3. Bg5 {[%clk 0:03:01]} 3... e6 {[%clk 0:02:54.1]}
4. Nbd2 {[%clk 0:03:00.2]} 4... c5 {[%clk 0:02:52.6]} 5. e3 {[%clk 0:03:00.1]}
5... Nc6 {[%clk 0:02:52]} 6. c3 {[%clk 0:03:00.5]} 6... Be7 {[%clk 0:02:51.4]}
7. Bd3 {[%clk 0:03:00.7]} 7... O-O {[%clk 0:02:51.4]} 8. Qc2 {[%clk 0:03:00.5]}
8... h6 {[%clk 0:02:52]} 9. h4 {[%clk 0:03:00.3]} 9... c4 {[%clk 0:02:50.3]} 10.
Be2 {[%clk 0:02:59.6]} 10... Qc7 {[%clk 0:02:32.6]} 11. Bf4 {[%clk 0:02:40.5]}
11... Bd6 {[%clk 0:02:31.1]} 12. Bxd6 {[%clk 0:02:40.4]} 12... Qxd6 {[%clk
0:02:32]} 13. e4 {[%clk 0:02:37.9]} 13... dxe4 {[%clk 0:02:26.1]} 14. Nxe4
{[%clk 0:02:38.8]} 14... Nxe4 {[%clk 0:02:26.6]} 15. Qxe4 {[%clk 0:02:38.1]}
15... Qd5 {[%clk 0:02:25.4]} 16. Nd2 {[%clk 0:02:34.9]} 16... b5 {[%clk
0:02:22]} 17. Bf3 {[%clk 0:02:31.9]} 17... Qxe4+ {[%clk 0:02:19]} 18. Nxe4
{[%clk 0:02:23.1]} 18... Rb8 {[%clk 0:02:10.2]} 19. Nc5 {[%clk 0:02:20.6]} 19...
Ne7 {[%clk 0:02:07]} 20. b4 {[%clk 0:02:08.5]} 20... Nd5 {[%clk 0:02:05.6]} 21.
Kd2 {[%clk 0:02:03.6]} 21... Rd8 {[%clk 0:01:57.4]} 22. a4 {[%clk 0:02:00]}
22... a6 {[%clk 0:01:51.4]} 23. axb5 {[%clk 0:01:59.9]} 23... axb5 {[%clk
0:01:52.3]} 24. Ra7 {[%clk 0:01:57.2]} 24... e5 {[%clk 0:01:46.2]} 25. Re1
{[%clk 0:01:46.6]} 25... exd4 {[%clk 0:01:44.9]} 26. Bxd5 {[%clk 0:01:44]} 26...
Rxd5 {[%clk 0:01:31.6]} 27. Re8+ {[%clk 0:01:43.5]} 27... Kh7 {[%clk 0:01:32.1]}
28. cxd4 {[%clk 0:01:43.6]} 28... Rxd4+ {[%clk 0:01:24.4]} 29. Kc3 {[%clk
0:01:43.5]} 29... Rxh4 {[%clk 0:01:10.9]} 30. Rc7 {[%clk 0:01:36.3]} 30... Ra8
{[%clk 0:00:59.3]} 31. Rcxc8 {[%clk 0:01:33.6]} 31... Ra2 {[%clk 0:00:58.5]} 32.
Nd7 {[%clk 0:01:25.9]} 32... Kg6 {[%clk 0:00:49.9]} 33. Ne5+ {[%clk 0:01:22.9]}
33... Kf6 {[%clk 0:00:47.3]} 34. Rc7 {[%clk 0:01:10.4]} 34... Rh1 {[%clk
0:00:34]} 35. Rxf7+ {[%clk 0:01:07.6]} 35... Kg5 {[%clk 0:00:34.4]} 36. f4+
{[%clk 0:01:02.3]} 36... Kh4 {[%clk 0:00:32.1]} 37. Rxg7 {[%clk 0:00:57.7]}
37... Rc1+ {[%clk 0:00:30.3]} 38. Kd4 {[%clk 0:00:55.4]} 38... Rd1+ {[%clk
0:00:30.5]} 39. Kc5 {[%clk 0:00:54.8]} 39... c3 {[%clk 0:00:29.9]} 40. Nf3+
{[%clk 0:00:52.2]} 40... Kh5 {[%clk 0:00:27.2]} 41. g4# {[%clk 0:00:52.9]} 1-0

[Event "Late-Titled-Tuesday-Blitz-February-06-2024"]
[Site "Chess.com"]
[Date "2024.02.06"]
[Round "2"]
[White "Igor_Lysyj"]
[Black "Orest_Vovk"]
[Result "1-0"]
[WhiteElo "2888"]
[BlackElo "2579"]
[TimeControl "180+1"]
[EndTime "14:17:22 PST"]
[Termination "Igor_Lysyj won by resignation"]

1. d4 {[%clk 0:03:00]} 1... h6 {[%clk 0:02:58.5]} 2. c4 {[%clk 0:02:58.8]} 2...
g5 {[%clk 0:02:59]} 3. Nc3 {[%clk 0:02:58.2]} 3... Bg7 {[%clk 0:02:59.5]} 4. e4
{[%clk 0:02:58.4]} 4... c5 {[%clk 0:03:00]} 5. d5 {[%clk 0:02:58.5]} 5... Bxc3+
{[%clk 0:02:59.8]} 6. bxc3 {[%clk 0:02:58.2]} 6... d6 {[%clk 0:03:00.7]} 7. h4
{[%clk 0:02:57.2]} 7... Qa5 {[%clk 0:03:00.8]} 8. Bd2 {[%clk 0:02:52.4]} 8... g4
{[%clk 0:02:58]} 9. Ne2 {[%clk 0:02:51.1]} 9... Nf6 {[%clk 0:02:57.5]} 10. Ng3
{[%clk 0:02:50.9]} 10... Nbd7 {[%clk 0:02:57.5]} 11. Be2 {[%clk 0:02:43.1]}
11... Ne5 {[%clk 0:02:57.1]} 12. h5 {[%clk 0:02:39.5]} 12... Bd7 {[%clk
0:02:55.2]} 13. Qc1 {[%clk 0:02:38.6]} 13... Qa4 {[%clk 0:02:52.8]} 14. Bxh6
{[%clk 0:02:35.4]} 14... Nxc4 {[%clk 0:02:39.3]} 15. Bg7 {[%clk 0:02:33]} 15...
O-O-O {[%clk 0:02:28.5]} 16. h6 {[%clk 0:02:30.5]} 16... Ne5 {[%clk 0:02:19.2]}
17. Bxh8 {[%clk 0:02:02.6]} 17... Rxh8 {[%clk 0:02:20.1]} 18. c4 {[%clk
0:01:58.2]} 18... b5 {[%clk 0:02:06.1]} 19. cxb5 {[%clk 0:01:56]} 19... Nxe4
{[%clk 0:01:59.2]} 20. Qe3 {[%clk 0:01:32.4]} 20... Qb4+ {[%clk 0:01:44.7]} 21.
Kf1 {[%clk 0:01:32.5]} 21... Nxg3+ {[%clk 0:01:26.9]} 22. fxg3 {[%clk
0:01:32.7]} 22... Bxb5 {[%clk 0:01:24.1]} 23. Bxb5 {[%clk 0:01:32.6]} 23...
Qxb5+ {[%clk 0:01:24.2]} 24. Kg1 {[%clk 0:01:33.1]} 24... Qb2 {[%clk 0:01:11.2]}
25. Rf1 {[%clk 0:01:31.3]} 25... f6 {[%clk 0:00:58]} 26. Rh5 {[%clk 0:01:29.8]}
26... Qxa2 {[%clk 0:00:51.5]} 27. Qe4 {[%clk 0:01:26]} 27... c4 {[%clk
0:00:15.2]} 28. h7 {[%clk 0:01:23.5]} 28... c3 {[%clk 0:00:10.8]} 29. Rxe5
{[%clk 0:01:17.6]} 29... fxe5 {[%clk 0:00:10]} 30. Qxg4+ {[%clk 0:01:17.1]}
30... Kc7 {[%clk 0:00:05.8]} 31. Qg7 {[%clk 0:01:15]} 31... Rxh7 {[%clk
0:00:04.1]} 32. Qxh7 {[%clk 0:01:14.7]} 32... Qxd5 {[%clk 0:00:03.9]} 33. Qxe7+
{[%clk 0:01:14.1]} 33... Kb6 {[%clk 0:00:03.9]} 34. Rb1+ {[%clk 0:01:11.4]}
34... Kc5 {[%clk 0:00:04.1]} 35. Qxa7+ {[%clk 0:01:09.2]} 35... Kc4 {[%clk
0:00:04.4]} 36. Qa2+ {[%clk 0:01:08.5]} 36... Kc5 {[%clk 0:00:03.1]} 37. Rb5+
{[%clk 0:01:07.9]} 37... Kxb5 {[%clk 0:00:03.5]} 38. Qxd5+ {[%clk 0:01:07.4]}
38... Kb4 {[%clk 0:00:04.4]} 39. Qxd6+ {[%clk 0:01:07.7]} 1-0

[Event "Late-Titled-Tuesday-Blitz-February-06-2024"]
[Site "Chess.com"]
[Date "2024.02.06"]
[Round "2"]
[White "Iuckyducky"]
[Black "komogro"]
[Result "0-1"]
[WhiteElo "2274"]
[BlackElo "2520"]
[TimeControl "180+1"]
[EndTime "14:17:22 PST"]
[Termination "komogro won by resignation"]

1. d4 {[%clk 0:02:54.3]} 1... Nf6 {[%clk 0:02:58.9]} 2. Bf4 {[%clk 0:02:54.4]}
2... d6 {[%clk 0:02:55.4]} 3. Nf3 {[%clk 0:02:54.7]} 3... g6 {[%clk 0:02:55.3]}
4. e3 {[%clk 0:02:53.9]} 4... Bg7 {[%clk 0:02:55.9]} 5. c3 {[%clk 0:02:48.3]}
5... a6 {[%clk 0:02:53.6]} 6. Bd3 {[%clk 0:02:48.7]} 6... b6 {[%clk 0:02:53.7]}
7. Nbd2 {[%clk 0:02:49.3]} 7... Bb7 {[%clk 0:02:54.2]} 8. Qc2 {[%clk 0:02:49]}
8... e6 {[%clk 0:02:54.4]} 9. e4 {[%clk 0:02:46.4]} 9... Nfd7 {[%clk 0:02:52.4]}
10. O-O-O {[%clk 0:02:46.2]} 10... Nc6 {[%clk 0:02:50.5]} 11. h4 {[%clk
0:02:45.2]} 11... h6 {[%clk 0:02:50.3]} 12. Rhe1 {[%clk 0:02:23.8]} 12... Ne7
{[%clk 0:02:50.1]} 13. Bh2 {[%clk 0:02:04.7]} 13... b5 {[%clk 0:02:49.1]} 14.
Kb1 {[%clk 0:01:57.6]} 14... Nb6 {[%clk 0:02:48.6]} 15. Nb3 {[%clk 0:01:43.3]}
15... Qd7 {[%clk 0:02:44.9]} 16. e5 {[%clk 0:01:24.5]} 16... Ned5 {[%clk
0:02:36.8]} 17. exd6 {[%clk 0:01:17.3]} 17... cxd6 {[%clk 0:02:36.4]} 18. Be4
{[%clk 0:01:11.5]} 18... O-O-O {[%clk 0:02:35]} 19. Na5 {[%clk 0:01:08]} 19...
Ba8 {[%clk 0:02:34.7]} 20. Nd2 {[%clk 0:00:57.7]} 20... Kb8 {[%clk 0:02:26.4]}
21. Ndb3 {[%clk 0:00:47.6]} 21... Ka7 {[%clk 0:02:25.2]} 22. Ka1 {[%clk
0:00:22.6]} 22... Rc8 {[%clk 0:02:25]} 23. Qe2 {[%clk 0:00:21.6]} 23... Nc4
{[%clk 0:02:20.5]} 24. Nxc4 {[%clk 0:00:21]} 24... bxc4 {[%clk 0:02:21.4]} 25.
Nd2 {[%clk 0:00:20.9]} 25... Qa4 {[%clk 0:02:21.2]} 26. Rc1 {[%clk 0:00:15.2]}
26... Rhd8 {[%clk 0:01:50]} 27. Bc2 {[%clk 0:00:14.7]} 27... Qb5 {[%clk
0:01:49.1]} 28. Qf3 {[%clk 0:00:15.1]} 28... Rd7 {[%clk 0:01:43.1]} 29. Ne4
{[%clk 0:00:10.7]} 29... Rb8 {[%clk 0:01:36.4]} 30. Rb1 {[%clk 0:00:11.1]} 30...
Bf8 {[%clk 0:01:30.6]} 31. Nd2 {[%clk 0:00:05.3]} 31... Nb4 {[%clk 0:01:22.2]}
32. Qd1 {[%clk 0:00:05.4]} 32... Nxa2 {[%clk 0:01:19.4]} 33. Kxa2 {[%clk
0:00:04.1]} 33... Qa5+ {[%clk 0:01:19.2]} 34. Ba4 {[%clk 0:00:04.7]} 34... Bc6
{[%clk 0:01:19.4]} 35. b3 {[%clk 0:00:04.6]} 35... cxb3+ {[%clk 0:01:18.8]} 36.
Rxb3 {[%clk 0:00:02.1]} 36... Bxa4 {[%clk 0:01:15.7]} 37. Rxb8 {[%clk
0:00:02.2]} 37... Bxd1+ {[%clk 0:01:14.7]} 0-1

[Event "Late-Titled-Tuesday-Blitz-February-06-2024"]
[Site "Chess.com"]
[Date "2024.02.06"]
[Round "2"]
[White "Pawngobblerx2000"]
[Black "FMOlexandrProhorov"]
[Result "0-1"]
[WhiteElo "2506"]
[BlackElo "2305"]
[TimeControl "180+1"]
[EndTime "14:17:24 PST"]
[Termination "FMOlexandrProhorov won by resignation"]

1. c4 {[%clk 0:03:00.9]} 1... g6 {[%clk 0:02:57.7]} 2. g3 {[%clk 0:03:01.4]}
2... Bg7 {[%clk 0:02:58.3]} 3. Bg2 {[%clk 0:03:02.1]} 3... f5 {[%clk 0:02:58.4]}
4. Nc3 {[%clk 0:03:02.2]} 4... Nf6 {[%clk 0:02:59]} 5. Nf3 {[%clk 0:03:02.2]}
5... O-O {[%clk 0:02:59.6]} 6. O-O {[%clk 0:03:02.3]} 6... d6 {[%clk 0:03:00.3]}
7. d3 {[%clk 0:03:01]} 7... e5 {[%clk 0:02:59.9]} 8. e4 {[%clk 0:03:00.7]} 8...
Nc6 {[%clk 0:02:58.8]} 9. Nd5 {[%clk 0:02:57.5]} 9... Be6 {[%clk 0:02:58]} 10.
Ng5 {[%clk 0:02:56.9]} 10... Bxd5 {[%clk 0:02:53.5]} 11. cxd5 {[%clk 0:02:55.5]}
11... Nd4 {[%clk 0:02:52.8]} 12. Be3 {[%clk 0:02:50.7]} 12... Qd7 {[%clk
0:02:45.9]} 13. Bxd4 {[%clk 0:02:49.6]} 13... exd4 {[%clk 0:02:45.9]} 14. Ne6
{[%clk 0:02:50.1]} 14... Rf7 {[%clk 0:02:20.9]} 15. Rc1 {[%clk 0:02:49.3]} 15...
c5 {[%clk 0:02:17.1]} 16. dxc6 {[%clk 0:01:54.8]} 16... Qxe6 {[%clk 0:02:05.8]}
17. cxb7 {[%clk 0:01:53]} 17... Rb8 {[%clk 0:02:04.5]} 18. exf5 {[%clk
0:01:52.3]} 18... Qxf5 {[%clk 0:02:00.9]} 19. Qb3 {[%clk 0:01:46.8]} 19... Qd7
{[%clk 0:01:50.1]} 20. Qc4 {[%clk 0:01:28.1]} 20... Rxb7 {[%clk 0:01:32.4]} 21.
Bxb7 {[%clk 0:01:19.7]} 21... Qxb7 {[%clk 0:01:32.1]} 22. Qc8+ {[%clk
0:01:07.1]} 22... Bf8 {[%clk 0:01:28.8]} 23. b3 {[%clk 0:00:59.1]} 23... Qb5
{[%clk 0:01:22.4]} 24. Qc4 {[%clk 0:00:57.5]} 24... Qh5 {[%clk 0:01:17.2]} 25.
Qxd4 {[%clk 0:00:54.1]} 25... Ng4 {[%clk 0:01:14.3]} 26. h4 {[%clk 0:00:53.6]}
26... Ne5 {[%clk 0:01:14]} 27. Qe4 {[%clk 0:00:42.3]} 27... Nf3+ {[%clk
0:01:10.3]} 28. Kg2 {[%clk 0:00:42.4]} 28... Nd2 {[%clk 0:01:10.9]} 29. Qa8
{[%clk 0:00:14.9]} 29... Nxf1 {[%clk 0:01:11.8]} 30. Rxf1 {[%clk 0:00:14.6]}
30... Kg7 {[%clk 0:01:05.3]} 31. Re1 {[%clk 0:00:13.8]} 31... Qf5 {[%clk
0:01:01.3]} 32. Re2 {[%clk 0:00:12.9]} 32... Be7 {[%clk 0:00:54.2]} 33. Qe8
{[%clk 0:00:12.4]} 33... Qf3+ {[%clk 0:00:47.1]} 0-1

[Event "Late-Titled-Tuesday-Blitz-February-06-2024"]
[Site "Chess.com"]
[Date "2024.02.06"]
[Round "2"]
[White "biostatistician"]
[Black "dmitrijiIM"]
[Result "0-1"]
[WhiteElo "2605"]
[BlackElo "2938"]
[TimeControl "180+1"]
[EndTime "14:17:25 PST"]
[Termination "dmitrijiIM won by resignation"]

1. d4 {[%clk 0:03:00.1]} 1... d5 {[%clk 0:02:57.2]} 2. Nf3 {[%clk 0:02:57.1]}
2... Nf6 {[%clk 0:02:56.8]} 3. c4 {[%clk 0:02:58]} 3... e6 {[%clk 0:02:56.4]} 4.
Nc3 {[%clk 0:02:57.6]} 4... c6 {[%clk 0:02:56.3]} 5. Bg5 {[%clk 0:02:57.4]} 5...
Nbd7 {[%clk 0:02:54.9]} 6. e3 {[%clk 0:02:57.5]} 6... Be7 {[%clk 0:02:55.2]} 7.
Bd3 {[%clk 0:02:57.3]} 7... O-O {[%clk 0:02:53.2]} 8. O-O {[%clk 0:02:57.2]}
8... dxc4 {[%clk 0:02:48.6]} 9. Bxc4 {[%clk 0:02:58.1]} 9... b5 {[%clk
0:02:49.5]} 10. Bd3 {[%clk 0:02:58]} 10... Bb7 {[%clk 0:02:46.6]} 11. Rc1 {[%clk
0:02:58.3]} 11... b4 {[%clk 0:02:28.5]} 12. Bxf6 {[%clk 0:02:57.6]} 12... gxf6
{[%clk 0:02:18.9]} 13. Na4 {[%clk 0:02:50]} 13... Qa5 {[%clk 0:02:11.8]} 14. Qc2
{[%clk 0:02:38.4]} 14... Kg7 {[%clk 0:02:00.1]} 15. Nc5 {[%clk 0:02:23.3]} 15...
Nxc5 {[%clk 0:01:58.8]} 16. dxc5 {[%clk 0:02:24.2]} 16... Qxa2 {[%clk
0:01:55.7]} 17. e4 {[%clk 0:02:12.2]} 17... Qa5 {[%clk 0:01:42.8]} 18. Rfd1
{[%clk 0:02:08.5]} 18... Qc7 {[%clk 0:01:40.6]} 19. Re1 {[%clk 0:01:57.1]} 19...
a5 {[%clk 0:01:37.6]} 20. e5 {[%clk 0:01:57.2]} 20... f5 {[%clk 0:01:37.3]} 21.
Nd4 {[%clk 0:01:41.8]} 21... Rad8 {[%clk 0:01:32.9]} 22. Ne2 {[%clk 0:01:40.3]}
22... Rd5 {[%clk 0:01:09.3]} 23. Nf4 {[%clk 0:01:30.6]} 23... Rxc5 {[%clk
0:00:58.4]} 24. Nh5+ {[%clk 0:01:19.5]} 24... Kh8 {[%clk 0:00:58.5]} 25. Qd2
{[%clk 0:01:18.2]} 25... Rxc1 {[%clk 0:00:30.9]} 26. Qxc1 {[%clk 0:01:19.1]}
26... Rg8 {[%clk 0:00:30.5]} 27. g3 {[%clk 0:00:48.9]} 27... c5 {[%clk
0:00:29.7]} 28. Bf1 {[%clk 0:00:25]} 28... Qc6 {[%clk 0:00:29.2]} 29. f3 {[%clk
0:00:22]} 29... Qxf3 {[%clk 0:00:29.1]} 0-1

[Event "Late-Titled-Tuesday-Blitz-February-06-2024"]
[Site "Chess.com"]
[Date "2024.02.06"]
[Round "2"]
[White "LiemLe"]
[Black "GlavkonVVS"]
[Result "1-0"]
[WhiteElo "3030"]
[BlackElo "2641"]
[TimeControl "180+1"]
[EndTime "14:17:26 PST"]
[Termination "LiemLe won by checkmate"]

1. Nf3 {[%clk 0:03:00.9]} 1... Nf6 {[%clk 0:02:59.2]} 2. c4 {[%clk 0:02:59.6]}
2... c5 {[%clk 0:02:59.1]} 3. Nc3 {[%clk 0:02:59.2]} 3... g6 {[%clk 0:02:59.4]}
4. d4 {[%clk 0:02:56.8]} 4... Bg7 {[%clk 0:02:58.2]} 5. d5 {[%clk 0:02:52.6]}
5... O-O {[%clk 0:02:57.7]} 6. e4 {[%clk 0:02:51.1]} 6... d6 {[%clk 0:02:58]} 7.
Be2 {[%clk 0:02:47.6]} 7... e6 {[%clk 0:02:52]} 8. O-O {[%clk 0:02:45.3]} 8...
exd5 {[%clk 0:02:52.3]} 9. cxd5 {[%clk 0:02:46]} 9... Re8 {[%clk 0:02:51.8]} 10.
Nd2 {[%clk 0:02:44.7]} 10... a6 {[%clk 0:02:51.7]} 11. a4 {[%clk 0:02:44.3]}
11... Nbd7 {[%clk 0:02:51.6]} 12. Kh1 {[%clk 0:02:37.8]} 12... Rb8 {[%clk
0:02:48.3]} 13. f4 {[%clk 0:02:02.9]} 13... Qc7 {[%clk 0:02:24.7]} 14. Bd3
{[%clk 0:01:58]} 14... c4 {[%clk 0:02:20.2]} 15. Nxc4 {[%clk 0:01:57.3]} 15...
Nc5 {[%clk 0:02:19.4]} 16. e5 {[%clk 0:01:48.5]} 16... Nxd3 {[%clk 0:02:09.5]}
17. Nxd6 {[%clk 0:01:34.8]} 17... Rxe5 {[%clk 0:01:47.6]} 18. fxe5 {[%clk
0:01:31.7]} 18... Nxe5 {[%clk 0:01:47.4]} 19. Nxc8 {[%clk 0:01:28.3]} 19... Rxc8
{[%clk 0:01:47.6]} 20. Bf4 {[%clk 0:01:22.1]} 20... Nh5 {[%clk 0:01:47.3]} 21.
d6 {[%clk 0:01:21.4]} 21... Qc4 {[%clk 0:01:22.2]} 22. Bxe5 {[%clk 0:01:02.7]}
22... Bxe5 {[%clk 0:01:21.6]} 23. Qd5 {[%clk 0:00:53.4]} 23... Qxd5 {[%clk
0:01:16.3]} 24. Nxd5 {[%clk 0:00:54.3]} 24... Bxd6 {[%clk 0:01:16.6]} 25. Rad1
{[%clk 0:00:51.8]} 25... Rc4 {[%clk 0:00:40.4]} 26. b3 {[%clk 0:00:41.3]} 26...
Rh4 {[%clk 0:00:28.5]} 27. Nf6+ {[%clk 0:00:40.3]} 27... Nxf6 {[%clk 0:00:28.2]}
28. Rxd6 {[%clk 0:00:41.2]} 28... Ne4 {[%clk 0:00:27.5]} 29. Rd8+ {[%clk
0:00:36.5]} 29... Kg7 {[%clk 0:00:27.5]} 30. Kg1 {[%clk 0:00:36.1]} 30... Nc5
{[%clk 0:00:23.2]} 31. Rc8 {[%clk 0:00:36.5]} 31... b6 {[%clk 0:00:22.5]} 32.
Rc7 {[%clk 0:00:36.7]} 32... Nxb3 {[%clk 0:00:17]} 33. Rfxf7+ {[%clk 0:00:37.1]}
33... Kg8 {[%clk 0:00:16.1]} 34. Rfd7 {[%clk 0:00:37.2]} 34... Rd4 {[%clk
0:00:15.7]} 35. Rc8# {[%clk 0:00:37.3]} 1-0

[Event "Late-Titled-Tuesday-Blitz-February-06-2024"]
[Site "Chess.com"]
[Date "2024.02.06"]
[Round "2"]
[White "BeardedNM"]
[Black "ChuckPhil"]
[Result "1-0"]
[WhiteElo "2244"]
[BlackElo "2490"]
[TimeControl "180+1"]
[EndTime "14:17:26 PST"]
[Termination "BeardedNM won by resignation"]

1. e4 {[%clk 0:03:00.9]} 1... c5 {[%clk 0:02:59.3]} 2. Nf3 {[%clk 0:03:00.5]}
2... Nc6 {[%clk 0:02:59.8]} 3. d4 {[%clk 0:03:01]} 3... cxd4 {[%clk 0:03:00.7]}
4. Nxd4 {[%clk 0:03:01.6]} 4... Nf6 {[%clk 0:03:01.2]} 5. Nc3 {[%clk 0:03:01.9]}
5... d6 {[%clk 0:03:01.6]} 6. Bc4 {[%clk 0:03:00.6]} 6... Qb6 {[%clk 0:03:00.3]}
7. Nb3 {[%clk 0:02:58.5]} 7... e6 {[%clk 0:03:00.3]} 8. O-O {[%clk 0:02:38]}
8... Be7 {[%clk 0:03:00.2]} 9. Qe2 {[%clk 0:02:35.4]} 9... O-O {[%clk
0:02:58.3]} 10. Be3 {[%clk 0:02:31.8]} 10... Qc7 {[%clk 0:02:58.2]} 11. f4
{[%clk 0:02:32.4]} 11... a6 {[%clk 0:02:57.7]} 12. Kh1 {[%clk 0:02:26.1]} 12...
b5 {[%clk 0:02:57.7]} 13. Bd3 {[%clk 0:02:26.5]} 13... Bb7 {[%clk 0:02:57.4]}
14. a3 {[%clk 0:02:02.5]} 14... b4 {[%clk 0:02:36.1]} 15. Nd1 {[%clk 0:01:58.7]}
15... bxa3 {[%clk 0:02:32.8]} 16. bxa3 {[%clk 0:01:58.3]} 16... Na5 {[%clk
0:02:26.3]} 17. Bg1 {[%clk 0:01:24.2]} 17... Rac8 {[%clk 0:02:19.5]} 18. e5
{[%clk 0:01:10.1]} 18... Nd5 {[%clk 0:02:01.5]} 19. Nxa5 {[%clk 0:00:58.8]}
19... Qxa5 {[%clk 0:02:01.2]} 20. Qe4 {[%clk 0:00:58.7]} 20... g6 {[%clk
0:01:59.8]} 21. c4 {[%clk 0:00:58.5]} 21... Nb4 {[%clk 0:01:27.5]} 22. axb4
{[%clk 0:00:52.3]} 22... Qxa1 {[%clk 0:01:27.3]} 23. Qxb7 {[%clk 0:00:51.1]}
23... Rfe8 {[%clk 0:01:23]} 24. exd6 {[%clk 0:00:36.5]} 24... Bxd6 {[%clk
0:01:22.3]} 25. c5 {[%clk 0:00:37]} 25... Bxf4 {[%clk 0:01:18.4]} 26. Rxf4
{[%clk 0:00:32.9]} 26... Rf8 {[%clk 0:01:14.9]} 27. Rxf7 {[%clk 0:00:17.1]}
27... Rxf7 {[%clk 0:01:14.6]} 28. Qxc8+ {[%clk 0:00:16.7]} 28... Kg7 {[%clk
0:01:13.8]} 29. Qxe6 {[%clk 0:00:13.2]} 29... Qxd1 {[%clk 0:01:11.3]} 30. Bc4
{[%clk 0:00:13.6]} 30... Rd7 {[%clk 0:01:00]} 31. Qe5+ {[%clk 0:00:12.2]} 31...
Kh6 {[%clk 0:00:58.1]} 32. c6 {[%clk 0:00:11.2]} 32... Rd8 {[%clk 0:00:52]} 33.
c7 {[%clk 0:00:11.2]} 33... Rc8 {[%clk 0:00:51.8]} 34. Be6 {[%clk 0:00:10.9]}
34... Re8 {[%clk 0:00:50.6]} 35. c8=Q {[%clk 0:00:10.6]} 35... Rxc8 {[%clk
0:00:50.6]} 36. Bxc8 {[%clk 0:00:11.3]} 36... Qd2 {[%clk 0:00:50.6]} 37. Be3+
{[%clk 0:00:10.1]} 1-0